bitfinex/quotes_BTCUSD_20251124
["timestamp","ask_amount","ask_price","bid_price","bid_amount"]
[1764012342518,0.01126989,88732.0,88726.0,0.00550069]
[1764012342519,0.011269,88739.0,88726.0,0.00450069]
[1764012342652,0.01126989,88732.0,88726.0,0.00450069]
[1764012342851,0.00011779,88732.0,88730.0,0.22540289]
[1764012343048,0.00011779,88732.0,88731.0,0.22540036]
[1764012343361,0.01127027,88729.0,88726.0,0.00550069]
[1764012343748,0.01138768,88732.0,88726.0,0.2309134]
[1764012343749,0.00011779,88732.0,88726.0,0.2309134]
[1764012343950,0.00011779,88732.0,88729.0,0.22540314]
[1764012344156,0.00011779,88732.0,88727.0,0.06368966]
[1764012344157,0.01138768,88732.0,88727.0,0.06368966]
[1764012344370,0.22540036,88731.0,88730.0,0.001]
[1764012344822,0.22541052,88727.0,88726.0,0.00450069]
[1764012345414,0.24654015,88727.0,88726.0,0.00450069]
[1764012345755,0.24654015,88727.0,88726.0,0.00365069]
[1764012345911,0.22542323,88722.0,88721.0,0.12517214]
[1764012346111,0.56955434,88722.0,88721.0,0.12517214]
[1764012347056,0.54842577,88721.0,88715.0,0.0001]
[1764012347258,0.56956122,88721.0,88715.0,0.0001]
[1764012348514,0.56956122,88721.0,88720.0,0.0014]
[1764012349660,0.34413545,88721.0,88720.0,0.0014]
[1764012349862,0.32541959,88721.0,88720.0,0.0014]
[1764012350180,0.22542577,88721.0,88720.0,0.0014]
[1764012353327,0.54842577,88721.0,88720.0,0.0014]
[1764012355270,0.323,88721.0,88720.0,0.0014]
[1764012355488,0.54842577,88721.0,88720.0,0.0014]
[1764012357741,0.54942577,88721.0,88720.0,0.0014]
[1764012358316,0.54942577,88721.0,88720.0,0.0004]
[1764012358512,0.32781316,88721.0,88720.0,0.0004]
[1764012358712,0.22642577,88721.0,88720.0,0.0004]
[1764012362278,2.61194876,88721.0,88720.0,0.0004]
[1764012362477,2.64683556,88721.0,88720.0,0.0004]
[1764012363120,2.64583556,88721.0,88720.0,0.0004]
[1764012363527,2.64683556,88721.0,88720.0,0.0004]
[1764012363671,2.64783556,88721.0,88720.0,0.0004]
[1764012363877,2.64683556,88721.0,88720.0,0.0004]
[1764012364427,2.6225081,88721.0,88720.0,0.0004]
[1764012365016,2.6225081,88721.0,88720.0,1e-08]
[1764012365017,2.678927,88721.0,88720.0,1e-08]
[1764012365384,2.54844101,88715.0,88714.0,1e-08]
[1764012365578,2.61153705,88715.0,88714.0,1e-08]
[1764012365969,2.64364102,88715.0,88714.0,1e-08]
[1764012367102,2.64564102,88715.0,88714.0,1e-08]
[1764012367279,2.64564102,88715.0,88680.0,0.0004]
[1764012367280,2.61099959,88701.0,88680.0,0.0004]
[1764012367427,2.63922136,88701.0,88680.0,0.0004]
[1764012368275,2.64374226,88701.0,88680.0,0.0004]
[1764012368459,2.64374226,88701.0,88700.0,0.00079122]
[1764012368657,2.57509927,88701.0,88700.0,0.00079122]
[1764012368859,2.58221927,88701.0,88700.0,0.00079122]
[1764012369062,2.57769837,88701.0,88700.0,0.00079122]
[1764012371917,0.57769837,88701.0,88700.0,0.00079122]
[1764012372681,0.57669837,88701.0,88700.0,0.00079122]
[1764012373405,0.57669837,88701.0,88700.0,0.0012197]
[1764012373586,0.57769837,88701.0,88700.0,0.0012197]
[1764012374886,0.02210177,88701.0,88700.0,0.0012197]
[1764012375085,0.2335966,88701.0,88700.0,0.0012197]
[1764012375287,0.00812,88701.0,88700.0,0.02389034]
[1764012375918,0.001,88701.0,88700.0,0.24936948]
[1764012377693,0.01127306,88707.0,88705.0,0.22546608]
[1764012377925,0.23672945,88709.0,88706.0,0.22546389]
[1764012378126,0.23672945,88709.0,88707.0,0.06998618]
[1764012378127,0.23673214,88708.0,88707.0,0.06998618]
[1764012378363,0.22547405,88702.0,88700.0,0.00079122]
[1764012378533,0.01127344,88704.0,88700.0,0.00079122]
[1764012378737,0.2254766,88701.0,88700.0,0.00079122]
[1764012378939,0.01127319,88706.0,88700.0,0.00079122]
[1764012378940,0.23673441,88707.0,88700.0,0.00079122]
[1764012379164,0.01127332,88705.0,88701.0,0.04517715]
[1764012379415,0.01127344,88704.0,88701.0,0.04517715]
[1764012379672,0.01127319,88706.0,88701.0,0.04517715]
[1764012379897,0.22545643,88709.0,88705.0,0.22546622]
[1764012379898,0.22545681,88709.0,88705.0,0.22546622]
[1764012380112,0.23673541,88707.0,88704.0,0.22546794]
[1764012380304,0.23673224,88708.0,88705.0,0.04969133]
[1764012380496,0.33427243,88712.0,88707.0,0.22546135]
[1764012380710,0.23671882,88713.0,88708.0,0.22545846]
[1764012380910,0.22545372,88710.0,88707.0,0.22546117]
[1764012381080,0.2367264,88710.0,88707.0,0.22546117]
[1764012381282,0.01127268,88710.0,88708.0,0.07712654]
[1764012381680,0.23672379,88711.0,88708.0,0.30258496]
[1764012381965,0.2254545,88710.0,88708.0,0.07712654]
[1764012382166,0.2254545,88710.0,88700.0,0.00079122]
[1764012382167,0.01127319,88706.0,88701.0,0.2254766]
[1764012382368,0.23673178,88708.0,88705.0,0.22546643]
[1764012382567,0.01127294,88708.0,88705.0,0.22546643]
[1764012382770,0.23673277,88708.0,88705.0,0.22546643]
[1764012382970,0.01127294,88708.0,88706.0,0.22546382]
[1764012383217,0.23672641,88710.0,88707.0,0.06771965]
[1764012384157,0.23672641,88710.0,88706.0,0.00024483]
[1764012384158,0.2254588,88708.0,88706.0,0.00024483]
[1764012384325,0.22546135,88707.0,88706.0,0.00024483]
[1764012385191,0.24656559,88707.0,88706.0,0.00024483]
[1764012387447,0.24756559,88707.0,88706.0,0.00024483]
[1764012389849,0.24757177,88707.0,88706.0,0.00024483]
[1764012397920,0.57057177,88707.0,88706.0,0.00024483]
[1764012401511,0.56957177,88707.0,88706.0,0.00024483]
[1764012402819,0.57057177,88707.0,88706.0,0.00024483]
[1764012405734,0.57057177,88707.0,88700.0,0.00079122]
[1764012405886,2.5484766,88701.0,88700.0,0.00079122]
[1764012406098,2.57670702,88701.0,88700.0,0.00079122]
[1764012406273,2.58122735,88701.0,88700.0,0.00079122]
[1764012407005,2.58222735,88701.0,88700.0,0.00079122]
[1764012408072,2.57510735,88701.0,88700.0,0.00079122]
[1764012408284,2.58222735,88701.0,88700.0,0.00079122]
[1764012408931,0.57058702,88701.0,88700.0,0.00079122]
[1764012409146,0.57770702,88701.0,88700.0,0.00079122]
[1764012410391,0.57670702,88701.0,88700.0,0.00079122]
[1764012410808,0.57770702,88701.0,88700.0,0.00079122]
[1764012412333,0.35223042,88701.0,88700.0,0.00079122]
[1764012412558,0.02211042,88701.0,88700.0,0.00079122]
[1764012412756,0.02211042,88701.0,88700.0,0.22627036]
[1764012412962,0.24758702,88701.0,88700.0,0.00079122]
[1764012413382,0.24658702,88701.0,88700.0,0.00079122]
[1764012416402,0.27869099,88701.0,88700.0,0.00079122]
[1764012417918,0.24658702,88701.0,88700.0,0.00079122]
[1764012418629,0.24758702,88701.0,88700.0,0.00079122]
[1764012420427,0.23678856,88687.0,88684.0,0.21095345]
[1764012420729,0.22551473,88686.0,88685.0,0.07947019]
[1764012421187,0.2255249,88682.0,88679.0,0.00712]
[1764012421406,0.23679664,88684.0,88679.0,0.00712]
[1764012421579,0.23679664,88684.0,88681.0,0.35121987]
[1764012421821,0.22552238,88683.0,88681.0,0.12517214]
[1764012422137,0.2255249,88682.0,88681.0,0.12517214]
[1764012422763,0.00025741,88687.0,88681.0,0.12517214]
[1764012422963,0.00025741,88687.0,88686.0,0.22551473]
[1764012423186,0.00025741,88687.0,88686.0,0.2480662]
[1764012423391,0.00025741,88687.0,88686.0,0.22551473]
[1764012423623,0.00025741,88687.0,88686.0,0.2480662]
[1764012423851,0.00025741,88687.0,88686.0,0.36328751]
[1764012424016,0.00025741,88687.0,88686.0,0.34073604]
[1764012425648,0.00025741,88687.0,88686.0,0.22551473]
[1764012425817,0.00025741,88687.0,88686.0,0.02255147]
[1764012426016,0.22552021,88684.0,88682.0,0.02255249]
[1764012426252,0.01127586,88685.0,88682.0,0.02255249]
[1764012426453,0.23679049,88686.0,88683.0,0.22552109]
[1764012426755,0.23679049,88686.0,88684.0,0.05991655]
[1764012427310,0.23679049,88686.0,88684.0,0.02255198]
[1764012427711,0.01127573,88686.0,88684.0,0.24807159]
[1764012428213,0.22551516,88686.0,88684.0,0.02255198]
[1764012428411,0.22551728,88685.0,88684.0,0.02255198]
[1764012428615,0.22551728,88685.0,88680.0,0.0004]
[1764012428616,0.22552737,88682.0,88680.0,0.0004]
[1764012428820,0.01127573,88686.0,88680.0,0.03551187]
[1764012429043,0.01153301,88687.0,88683.0,0.22552116]
[1764012429238,0.01153301,88687.0,88684.0,0.02255198]
[1764012429449,0.23679055,88686.0,88684.0,0.02255198]
[1764012429681,0.01153301,88687.0,88684.0,0.02255198]
[1764012429682,0.00025741,88687.0,88686.0,0.22551473]
[1764012429899,0.00025741,88687.0,88686.0,0.28894127]
[1764012430097,0.00025741,88687.0,88686.0,0.2663898]
[1764012430338,0.00025741,88687.0,88686.0,0.04087507]
[1764012430635,0.00025741,88687.0,88686.0,0.28894127]
[1764012430876,0.00025741,88687.0,88686.0,0.04087507]
[1764012431078,0.00025741,88687.0,88686.0,0.2663898]
[1764012431907,0.00025741,88687.0,88686.0,0.04087507]
[1764012432145,0.00025741,88687.0,88686.0,0.2663898]
[1764012432339,0.00025741,88687.0,88679.0,0.12517214]
[1764012432340,0.01127586,88685.0,88679.0,0.12517214]
[1764012432569,0.01127599,88684.0,88680.0,0.22592983]
[1764012432824,0.01127611,88683.0,88680.0,0.0004]
[1764012433246,0.22552745,88681.0,88680.0,0.0004]
[1764012433455,0.00025741,88687.0,88684.0,0.22551982]
[1764012433661,0.00025741,88687.0,88680.0,0.0004]
[1764012433662,0.2370471,88687.0,88685.0,0.0351092]
[1764012433867,0.22551541,88686.0,88685.0,0.0351092]
[1764012434070,0.2370471,88687.0,88685.0,0.0351092]
[1764012434285,0.01153301,88687.0,88685.0,0.03550717]
[1764012434496,0.01153301,88687.0,88685.0,0.0351092]
[1764012434707,0.01153301,88687.0,88680.0,0.22592861]
[1764012434708,0.22552543,88682.0,88680.0,0.0004]
[1764012434915,0.22552745,88681.0,88680.0,0.0004]
[1764012435143,0.24667783,88681.0,88680.0,0.0004]
[1764012439600,0.56967783,88681.0,88680.0,0.0004]
[1764012440002,0.56966151,88681.0,88680.0,0.0004]
[1764012440397,0.56966151,88681.0,88680.0,0.00095106]
[1764012440937,0.57066151,88681.0,88680.0,0.00095106]
[1764012448022,2.57066151,88681.0,88680.0,0.00095106]
[1764012449454,2.60076548,88681.0,88680.0,0.00095106]
[1764012449655,2.62408965,88681.0,88680.0,0.00095106]
[1764012449995,2.60554359,88681.0,88680.0,0.00095106]
[1764012450705,2.60454359,88681.0,88680.0,0.00095106]
[1764012450907,2.60554359,88681.0,88680.0,0.00095106]
[1764012452470,2.60654359,88681.0,88680.0,0.00095106]
[1764012452672,2.60650905,88681.0,88680.0,0.00095106]
[1764012453098,2.65847413,88681.0,88680.0,0.00095106]
[1764012453391,2.60649919,88681.0,88680.0,0.00095106]
[1764012453587,2.60307114,88681.0,88680.0,0.00095106]
[1764012453822,2.57874697,88681.0,88680.0,0.00095106]
[1764012455612,2.57674697,88681.0,88680.0,0.00095106]
[1764012455829,2.57774697,88681.0,88680.0,0.00095106]
[1764012457014,2.57674697,88681.0,88680.0,0.00095106]
[1764012457323,2.57774697,88681.0,88680.0,0.00095106]
[1764012457940,2.02209952,88681.0,88680.0,0.00095106]
[1764012458139,0.22652745,88681.0,88680.0,0.00095106]
[1764012458339,0.001,88681.0,88680.0,0.02360009]
[1764012458525,0.001,88681.0,88680.0,0.00095106]
[1764012458724,0.22552735,88682.0,88680.0,0.00095106]
[1764012458931,0.22552566,88682.0,88680.0,0.0004]
[1764012459148,0.22652745,88681.0,88680.0,0.0004]
[1764012459357,0.001,88681.0,88680.0,0.0004]
[1764012459559,0.001,88681.0,88680.0,0.02697533]
[1764012459767,0.01127611,88683.0,88680.0,0.252505]
[1764012459995,0.001,88682.0,88680.0,0.02697533]
[1764012460181,0.22652724,88682.0,88680.0,0.02697533]
[1764012460385,0.22552745,88681.0,88680.0,0.02697533]
[1764012460590,0.22552745,88681.0,88680.0,0.0004]
[1764012460948,0.01127599,88684.0,88680.0,0.0004]
[1764012461155,0.22552745,88681.0,88680.0,0.0004]
[1764012461395,0.23680333,88683.0,88680.0,0.0004]
[1764012461600,0.22552745,88681.0,88680.0,0.0004]
[1764012461797,0.22652745,88681.0,88680.0,0.02299379]
[1764012462115,0.22652745,88681.0,88680.0,0.0004]
[1764012462316,0.22552745,88681.0,88680.0,0.0004]
[1764012463318,0.22652745,88681.0,88680.0,0.0004]
[1764012464505,0.24764873,88681.0,88680.0,0.0004]
[1764012464700,0.22652745,88681.0,88680.0,0.0004]
[1764012464837,0.24764824,88681.0,88680.0,0.00095106]
[1764012466688,0.02212079,88681.0,88680.0,0.00095106]
[1764012466900,0.02212079,88681.0,88680.0,0.02585533]
[1764012467530,0.22652745,88681.0,88680.0,0.02585533]
[1764012467653,0.001,88681.0,88680.0,0.22648105]
[1764012468058,0.001,88681.0,88680.0,0.00095106]
[1764012468258,0.22652745,88681.0,88680.0,0.00095106]
[1764012468558,0.22652745,88681.0,88680.0,0.22648105]
[1764012468559,0.001,88681.0,88680.0,0.22648105]
[1764012468780,0.01127573,88686.0,88682.0,0.22552361]
[1764012468998,0.0211208,88685.0,88682.0,0.22552361]
[1764012469201,0.23679267,88686.0,88680.0,0.07041122]
[1764012469202,0.01127611,88683.0,88680.0,0.07041122]
[1764012469428,0.01127611,88683.0,88680.0,0.22592767]
[1764012469630,0.23679968,88683.0,88680.0,0.0004]
[1764012469788,0.23679968,88683.0,88680.0,0.22592766]
[1764012469989,0.23680099,88683.0,88680.0,0.22592766]
[1764012470278,0.22552702,88682.0,88680.0,0.02295299]
[1764012470483,0.2367961,88684.0,88680.0,0.02295299]
[1764012470484,0.323,88691.0,88686.0,0.22551473]
[1764012470630,0.01127548,88688.0,88684.0,0.22551751]
[1764012470795,0.01127548,88688.0,88680.0,0.0004]
[1764012470796,0.01127535,88689.0,88686.0,0.22551473]
[1764012471000,0.55977846,88691.0,88686.0,0.22551473]
[1764012471001,0.22550471,88690.0,88686.0,0.22551473]
[1764012471197,0.01127573,88686.0,88680.0,0.0004]
[1764012471552,0.23679518,88685.0,88680.0,0.02295299]
[1764012471756,0.22552745,88681.0,88680.0,0.0004]
[1764012472333,0.01127611,88683.0,88680.0,0.0004]
[1764012472334,0.23679884,88683.0,88680.0,0.0004]
[1764012472552,0.22552745,88681.0,88680.0,0.0004]
[1764012475285,0.22552745,88681.0,88679.0,0.11857817]
[1764012475286,0.22552999,88680.0,88679.0,0.11857817]
[1764012475705,0.22552999,88680.0,88679.0,0.11915985]
[1764012475861,0.54852999,88680.0,88679.0,0.11915985]
[1764012476067,0.56964162,88680.0,88679.0,0.11915985]
[1764012476283,0.68225233,88680.0,88679.0,0.11915985]
[1764012477691,0.68225233,88680.0,88679.0,0.00058168]
[1764012480897,0.56964162,88680.0,88679.0,0.00058168]
[1764012481780,0.34411163,88680.0,88679.0,0.00058168]
[1764012481985,0.323,88680.0,88679.0,0.00058168]
[1764012482394,0.56965638,88680.0,88679.0,0.00058168]
[1764012482595,0.34412639,88680.0,88679.0,0.00058168]
[1764012482795,0.34412639,88680.0,88679.0,0.02313493]
[1764012483012,0.56965638,88680.0,88679.0,0.02313493]
[1764012483233,0.56965638,88680.0,88679.0,0.00058168]
[1764012483433,0.56965638,88680.0,88679.0,0.04800445]
[1764012483699,0.34412639,88680.0,88679.0,0.00058168]
[1764012484137,0.01127624,88682.0,88680.0,0.22552995]
[1764012484338,0.23681494,88677.0,88671.0,0.22201249]
[1764012484513,0.011277,88676.0,88673.0,0.22554765]
[1764012484712,0.22554271,88675.0,88674.0,0.05700832]
[1764012484913,0.23680761,88680.0,88670.0,0.0004]
[1764012485114,0.01127637,88681.0,88671.0,0.22555178]
[1764012485327,0.23681664,88677.0,88670.0,0.0004]
[1764012485524,0.01127662,88679.0,88670.0,0.0004]
[1764012485525,0.23681206,88678.0,88670.0,0.0004]
[1764012485876,0.01127675,88678.0,88670.0,0.11897817]
[1764012486183,0.01127726,88674.0,88671.0,0.0344531]
[1764012486473,0.01127688,88677.0,88673.0,0.22554689]
[1764012486474,0.22553976,88677.0,88673.0,0.22554689]
[1764012486669,0.23681664,88677.0,88674.0,0.22554508]
[1764012486868,0.23681664,88677.0,88673.0,0.22554689]
[1764012486869,0.23681771,88676.0,88673.0,0.22554689]
[1764012487035,0.01127726,88674.0,88672.0,0.22555018]
[1764012487230,0.23681924,88676.0,88673.0,0.08300885]
[1764012487430,0.22554525,88674.0,88673.0,0.08300885]
[1764012487667,0.22554926,88673.0,88671.0,0.0344531]
[1764012487900,0.23682104,88675.0,88671.0,0.0344531]
[1764012488105,0.01127726,88674.0,88671.0,0.0344531]
[1764012488243,0.01127649,88680.0,88671.0,0.0344531]
[1764012488442,0.23681034,88679.0,88676.0,0.22553862]
[1764012488662,0.23681725,88676.0,88674.0,0.22554496]
[1764012488864,0.23682371,88674.0,88671.0,0.26200465]
[1764012489381,0.23682194,88675.0,88672.0,0.2255491]
[1764012489734,0.01127611,88683.0,88671.0,0.0344531]
[1764012489930,0.23681245,88678.0,88675.0,0.22554028]
[1764012490134,0.22553762,88677.0,88676.0,0.07114886]
[1764012490388,0.01127726,88674.0,88671.0,0.26200508]
[1764012490622,0.23682264,88674.0,88671.0,0.26200508]
[1764012490823,0.22555034,88672.0,88671.0,0.0364531]
[1764012491016,0.22554779,88673.0,88671.0,0.0364531]
[1764012491216,0.01127726,88674.0,88671.0,0.26200395]
[1764012491420,0.2368231,88674.0,88672.0,0.0839221]
[1764012491577,0.22554779,88673.0,88672.0,0.0859221]
[1764012491782,0.22554779,88673.0,88672.0,0.002]
[1764012491983,0.22554779,88673.0,88671.0,0.0344531]
[1764012492328,0.22554779,88673.0,88671.0,0.26200534]
[1764012492625,0.22554901,88673.0,88671.0,0.0364531]
[1764012492845,0.22555034,88672.0,88671.0,0.0364531]
[1764012493070,0.23682639,88673.0,88670.0,0.22595488]
[1764012493247,0.23682639,88673.0,88671.0,0.22555275]
[1764012493411,0.22554779,88673.0,88672.0,0.002]
[1764012494950,0.01127738,88673.0,88670.0,0.0004]
[1764012495156,0.01127738,88673.0,88671.0,0.03716595]
[1764012495378,0.011277,88676.0,88671.0,0.03516595]
[1764012495498,0.01127688,88677.0,88674.0,0.22554521]
[1764012495699,0.22553461,88679.0,88675.0,0.24809507]
[1764012495951,0.02115807,88678.0,88677.0,0.22553762]
[1764012496286,0.2546,88780.0,88677.0,0.22553762]
[1764012496287,0.33427522,88690.0,88677.0,0.05099665]
[1764012496432,0.02115618,88686.0,88685.0,0.22551728]
[1764012497022,0.02115618,88686.0,88684.0,0.2255193]
[1764012497211,0.2255107,88688.0,88685.0,0.22551536]
[1764012497408,0.03389962,88694.0,88685.0,0.22551536]
[1764012497641,0.01127471,88694.0,88686.0,0.22551473]
[1764012497884,0.01127471,88694.0,88674.0,0.01127726]
[1764012497885,0.01127573,88686.0,88670.0,0.0004]
[1764012498039,0.01153301,88687.0,88672.0,0.01127751]
[1764012498040,0.00025741,88687.0,88672.0,0.01127751]
[1764012498204,0.00025741,88687.0,88685.0,0.22551647]
[1764012498410,0.00025741,88687.0,88675.0,0.01227713]
[1764012498635,0.00025741,88687.0,88684.0,0.22551839]
[1764012498917,0.00025741,88687.0,88685.0,0.22551687]
[1764012499155,0.00125741,88687.0,88685.0,0.29429977]
[1764012499381,0.00125741,88687.0,88685.0,0.22551687]
[1764012499583,0.01127573,88686.0,88671.0,0.01127764]
[1764012499784,0.01153301,88687.0,88671.0,0.01127764]
[1764012499785,0.00025741,88687.0,88684.0,0.22651964]
[1764012500122,0.00025741,88687.0,88686.0,0.22551473]
[1764012500553,0.00025741,88687.0,88685.0,0.22651489]
[1764012500750,0.00025741,88687.0,88686.0,0.0452032]
[1764012501537,0.2257696,88687.0,88686.0,0.0452032]
[1764012501905,0.2257696,88687.0,88670.0,0.0004]
[1764012501906,0.011277,88676.0,88673.0,0.22554747]
[1764012502116,0.01127649,88680.0,88678.0,0.22553485]
[1764012502320,0.01127637,88681.0,88678.0,0.22553485]
[1764012502726,0.01127573,88686.0,88670.0,0.01167777]
[1764012502727,0.01127599,88684.0,88670.0,0.01167777]
[1764012502945,0.01127573,88686.0,88681.0,0.22552533]
[1764012503172,0.01127573,88686.0,88679.0,0.22553121]
[1764012503173,0.01127624,88682.0,88679.0,0.22553121]
[1764012503380,0.01127611,88683.0,88677.0,0.22553587]
[1764012503598,0.01127624,88682.0,88680.0,0.22552991]
[1764012503798,0.01127586,88685.0,88680.0,0.22552991]
[1764012503919,0.22552526,88682.0,88678.0,0.22553287]
[1764012504125,0.23679847,88683.0,88680.0,0.2255295]
[1764012504365,0.01127599,88684.0,88681.0,0.2255273]
[1764012504682,0.23678331,88689.0,88683.0,0.22552146]
[1764012504843,0.01127611,88683.0,88680.0,0.22552999]
[1764012505214,0.65593336,88690.0,88681.0,0.02255274]
[1764012505480,0.1310053,88695.0,88681.0,0.02255274]
[1764012505481,0.00712,88695.0,88686.0,0.22551473]
[1764012505679,0.01839459,88695.0,88686.0,0.22551473]
[1764012505884,0.01127471,88694.0,88686.0,0.22551473]
[1764012506045,0.00712,88695.0,88686.0,0.2480662]
[1764012506242,0.01127484,88693.0,88686.0,0.2480662]
[1764012506431,0.225502,88692.0,88686.0,0.2480662]
[1764012506673,0.0112751,88691.0,88686.0,0.2480662]
[1764012507083,0.0112751,88691.0,88686.0,0.24843355]
[1764012507284,0.01127484,88693.0,88686.0,0.24843355]
[1764012507522,0.323,88695.0,88686.0,0.24843355]
[1764012507737,0.01127484,88693.0,88686.0,0.24843355]
[1764012507896,0.23677225,88693.0,88686.0,0.24791355]
[1764012508105,0.2254948,88694.0,88686.0,0.35344696]
[1764012508341,0.01127484,88693.0,88686.0,0.33089549]
[1764012508518,0.01127459,88695.0,88686.0,0.33189549]
[1764012508687,0.01127497,88692.0,88686.0,0.33189549]
[1764012509128,0.22549509,88694.0,88686.0,0.33189549]
[1764012509327,0.23677253,88693.0,88686.0,0.33189549]
[1764012509532,0.01127522,88690.0,88686.0,0.33189549]
[1764012509738,0.0112751,88691.0,88686.0,0.33189549]
[1764012509939,0.01127484,88693.0,88686.0,0.33189549]
[1764012510154,0.22547728,88701.0,88686.0,0.33189549]
[1764012510155,0.33012,88697.0,88686.0,0.33189549]
[1764012510471,0.0112751,88691.0,88686.0,0.33189549]
[1764012510680,0.33012,88697.0,88686.0,0.33189549]
[1764012510903,3.48297355,88740.0,88686.0,0.33189549]
[1764012510904,0.00712,88706.0,88686.0,0.33189549]
[1764012511179,0.01127268,88710.0,88686.0,0.33189549]
[1764012511180,0.0451651,88710.0,88686.0,0.33189549]
[1764012511340,0.01127154,88719.0,88686.0,0.33189549]
[1764012511546,0.01127243,88712.0,88686.0,0.33189549]
[1764012511745,0.03389192,88714.0,88686.0,0.33189549]
[1764012511993,0.01127179,88717.0,88686.0,0.33189549]
[1764012512201,0.03389032,88717.0,88686.0,0.39341848]
[1764012512599,0.01127179,88717.0,88686.0,0.39541848]
[1764012512774,0.04516194,88718.0,88686.0,0.40541848]
[1764012512979,0.35689028,88718.0,88686.0,0.39541848]
[1764012513187,0.22543843,88717.0,88686.0,0.39541848]
[1764012513389,0.33427166,88718.0,88686.0,0.39541848]
[1764012513589,0.22544847,88713.0,88686.0,0.39541848]
[1764012513769,0.0112723,88713.0,88686.0,0.39341848]
[1764012514190,0.01127217,88714.0,88686.0,0.39641848]
[1764012514394,0.323,88716.0,88686.0,0.39641848]
[1764012514574,0.01127205,88715.0,88686.0,0.39641848]
[1764012514748,0.33427192,88716.0,88686.0,0.39641848]
[1764012514950,0.01127332,88705.0,88686.0,0.39641848]
[1764012515116,0.01127357,88703.0,88686.0,0.39641848]
[1764012515314,0.22544689,88713.0,88686.0,0.39641848]
[1764012515513,0.01127332,88705.0,88686.0,0.39641848]
[1764012515716,0.01127357,88703.0,88686.0,0.39641848]
[1764012516164,0.22546759,88705.0,88686.0,0.39641848]
[1764012516370,0.01127344,88704.0,88686.0,0.39641848]
[1764012516560,0.01127357,88703.0,88686.0,0.39641848]
[1764012516984,0.01127408,88699.0,88686.0,0.39641848]
[1764012517179,0.01127433,88697.0,88686.0,0.33389549]
[1764012517389,0.66701164,88700.0,88686.0,0.34101549]
[1764012517390,0.01127395,88700.0,88686.0,0.34101549]
[1764012517682,0.01127421,88698.0,88686.0,0.34101549]
[1764012518239,0.2367532,88700.0,88686.0,0.34101549]
[1764012518240,0.01127395,88700.0,88686.0,0.34101549]
[1764012518881,0.01127408,88699.0,88686.0,0.34101549]
[1764012519081,0.22546843,88705.0,88686.0,0.34101549]
[1764012519082,0.01127306,88707.0,88686.0,0.34101549]
[1764012519256,0.01127319,88706.0,88686.0,0.34101549]
[1764012519478,0.01127306,88707.0,88686.0,0.34101549]
[1764012519675,0.01127383,88701.0,88686.0,0.34101549]
[1764012519874,0.23675477,88700.0,88686.0,0.34101549]
[1764012520080,0.01127395,88700.0,88686.0,0.34101549]
[1764012521502,0.01127344,88704.0,88686.0,0.34101549]
[1764012521503,0.23674275,88704.0,88686.0,0.34101549]
[1764012521752,0.23674027,88705.0,88686.0,0.34101549]
[1764012521897,0.01127357,88703.0,88686.0,0.34101549]
[1764012522245,0.23672972,88709.0,88686.0,0.34101549]
[1764012522444,0.01127319,88706.0,88686.0,0.34101549]
[1764012522758,0.01127357,88703.0,88686.0,0.34101549]
[1764012522995,0.22546656,88705.0,88686.0,0.34101549]
[1764012523125,0.23673988,88705.0,88686.0,0.34101549]
[1764012523569,0.01127383,88701.0,88686.0,0.34101549]
[1764012524026,0.01127408,88699.0,88686.0,0.34101549]
[1764012524666,0.22545854,88709.0,88686.0,0.34101549]
[1764012524876,0.65573769,88710.0,88686.0,0.34101549]
[1764012525316,0.22545102,88712.0,88686.0,0.34101549]
[1764012525454,0.65573769,88710.0,88686.0,0.34101549]
[1764012525954,0.89246559,88710.0,88686.0,0.34101549]
[1764012526190,0.66701037,88710.0,88686.0,0.34101549]
[1764012526354,0.01127268,88710.0,88686.0,0.34101549]
[1764012526571,0.66701037,88710.0,88686.0,0.34101549]
[1764012526809,0.65573769,88710.0,88686.0,0.34101549]
[1764012527105,0.01127281,88709.0,88686.0,0.34101549]
[1764012527309,0.65573769,88710.0,88686.0,0.34101549]
[1764012528942,0.01127344,88704.0,88686.0,0.34101549]
[1764012530063,0.01127255,88711.0,88686.0,0.34101549]
[1764012530262,0.65573769,88710.0,88686.0,0.34101549]
[1764012530466,0.0112737,88702.0,88686.0,0.34101549]
[1764012530693,0.2254817,88699.0,88686.0,0.34101549]
[1764012530874,0.22546223,88707.0,88686.0,0.34101549]
[1764012531239,0.23673529,88707.0,88686.0,0.34101549]
[1764012531420,0.22546467,88706.0,88686.0,0.34101549]
[1764012531619,0.01127332,88705.0,88686.0,0.34101549]
[1764012531817,0.22546605,88706.0,88686.0,0.34101549]
[1764012532038,0.2254768,88701.0,88686.0,0.34101549]
[1764012532445,0.23675282,88702.0,88686.0,0.34101549]
[1764012532446,0.01127306,88707.0,88686.0,0.34101549]
[1764012532655,0.01127357,88703.0,88686.0,0.34101549]
[1764012532891,0.22547234,88703.0,88686.0,0.34101549]
[1764012533295,0.23674591,88703.0,88686.0,0.34101549]
[1764012533457,0.0112737,88702.0,88686.0,0.34101549]
[1764012533657,0.01127421,88698.0,88686.0,0.34101549]
[1764012533861,0.65573769,88700.0,88686.0,0.33389549]
[1764012534085,0.88121693,88700.0,88686.0,0.34101549]
[1764012534282,0.65573769,88700.0,88686.0,0.34101549]
[1764012534494,0.23673408,88708.0,88686.0,0.34101549]
[1764012534684,0.01127344,88704.0,88686.0,0.34101549]
[1764012534847,0.22547221,88703.0,88686.0,0.34101549]
[1764012535048,0.22546202,88707.0,88686.0,0.34101549]
[1764012535438,0.01127395,88700.0,88686.0,0.34101549]
[1764012535813,0.2254779,88701.0,88686.0,0.34101549]
[1764012535814,0.01127383,88701.0,88686.0,0.34101549]
[1764012536015,0.01127383,88701.0,88686.0,0.33801549]
[1764012536215,0.01127395,88700.0,88686.0,0.34001549]
[1764012536435,0.23675371,88700.0,88686.0,0.34001549]
[1764012537063,0.22548368,88699.0,88686.0,0.34001549]
[1764012537266,0.01127433,88697.0,88686.0,0.34001549]
[1764012537712,0.2367634,88697.0,88686.0,0.34001549]
[1764012538367,0.01127421,88698.0,88686.0,0.34001549]
[1764012538510,0.22548383,88699.0,88686.0,0.34001549]
[1764012539302,0.65573769,88700.0,88686.0,0.34001549]
[1764012539857,0.01127268,88710.0,88686.0,0.34001549]
[1764012539858,0.65573769,88710.0,88686.0,0.34001549]
[1764012540231,0.66701037,88710.0,88686.0,0.34001549]
[1764012540434,0.65573769,88710.0,88686.0,0.34001549]
[1764012540834,0.66701037,88710.0,88686.0,0.34001549]
[1764012541036,0.01127065,88726.0,88686.0,0.40253848]
[1764012541239,0.01127141,88720.0,88686.0,0.75942531]
[1764012541444,0.6670091,88720.0,88686.0,0.75942531]
[1764012541785,0.01127065,88726.0,88719.0,0.22542914]
[1764012541987,0.01127103,88723.0,88719.0,0.22543085]
[1764012542192,0.02115517,88722.0,88720.0,0.22542786]
[1764012542341,0.02115517,88721.0,88720.0,0.22542786]
[1764012542510,0.02115517,88721.0,88719.0,0.22543085]
[1764012542710,0.02115517,88720.0,88719.0,0.22543085]